[Event "Early-Titled-Tuesday-Blitz-January-23-2024"]
[Site "Chess.com"]
[Date "2024.01.23"]
[Round "10"]
[White "agvega14"]
[Black "ferdipy"]
[Result "0-1"]
[WhiteElo "2153"]
[BlackElo "2287"]
[TimeControl "180+1"]
[EndTime "9:57:38 PST"]
[Termination "ferdipy won by checkmate"]

1. e4 {[%clk 0:03:00.9]} 1... c5 {[%clk 0:02:43.6]} 2. Nf3 {[%clk 0:02:58.9]}
2... d6 {[%clk 0:02:43.9]} 3. c3 {[%clk 0:02:58.3]} 3... Nf6 {[%clk 0:02:43.9]}
4. h3 {[%clk 0:02:58.5]} 4... Nc6 {[%clk 0:02:43.6]} 5. Bd3 {[%clk 0:02:58.3]}
5... e5 {[%clk 0:02:42.6]} 6. Bc2 {[%clk 0:02:58]} 6... Be6 {[%clk 0:02:42]} 7.
O-O {[%clk 0:02:57.3]} 7... c4 {[%clk 0:02:40.9]} 8. a3 {[%clk 0:02:51]} 8...
Be7 {[%clk 0:02:33.8]} 9. a4 {[%clk 0:02:49.8]} 9... O-O {[%clk 0:02:32.9]} 10.
Na3 {[%clk 0:02:49.4]} 10... Rc8 {[%clk 0:02:28]} 11. d4 {[%clk 0:02:39.4]}
11... cxd3 {[%clk 0:02:17.5]} 12. Bxd3 {[%clk 0:02:38.2]} 12... d5 {[%clk
0:02:14]} 13. exd5 {[%clk 0:02:32.8]} 13... Nxd5 {[%clk 0:02:14.9]} 14. Qe2
{[%clk 0:02:24.2]} 14... f6 {[%clk 0:02:01.5]} 15. Rd1 {[%clk 0:02:23.3]} 15...
Qe8 {[%clk 0:01:16.7]} 16. Nb5 {[%clk 0:02:09.4]} 16... a6 {[%clk 0:01:16.3]}
17. Nbd4 {[%clk 0:01:53]} 17... Bf7 {[%clk 0:01:13.6]} 18. Nxc6 {[%clk
0:01:52.3]} 18... Qxc6 {[%clk 0:01:11.1]} 19. Nh4 {[%clk 0:01:38.7]} 19... Rfd8
{[%clk 0:01:10.4]} 20. Be4 {[%clk 0:01:35.4]} 20... Qe6 {[%clk 0:00:54.4]} 21.
Bf5 {[%clk 0:01:29.2]} 21... Qc6 {[%clk 0:00:54.6]} 22. Bxc8 {[%clk 0:01:28]}
22... Rxc8 {[%clk 0:00:54.1]} 23. Nf5 {[%clk 0:01:27.8]} 23... Bf8 {[%clk
0:00:54.1]} 24. a5 {[%clk 0:01:23.1]} 24... Kh8 {[%clk 0:00:53.8]} 25. Qf3
{[%clk 0:01:17.4]} 25... Be6 {[%clk 0:00:53.3]} 26. Ne3 {[%clk 0:00:56.3]} 26...
Nf4 {[%clk 0:00:48.3]} 27. Qxc6 {[%clk 0:00:56]} 27... bxc6 {[%clk 0:00:49.2]}
28. Nf1 {[%clk 0:00:52.1]} 28... Nd5 {[%clk 0:00:47.8]} 29. Kh2 {[%clk 0:00:50]}
29... Rb8 {[%clk 0:00:47.7]} 30. g3 {[%clk 0:00:49.5]} 30... Bc5 {[%clk
0:00:47.2]} 31. Kg2 {[%clk 0:00:48.9]} 31... h5 {[%clk 0:00:44.5]} 32. Ra4
{[%clk 0:00:43.9]} 32... Ne7 {[%clk 0:00:43.9]} 33. Rh4 {[%clk 0:00:42.5]} 33...
g6 {[%clk 0:00:43.3]} 34. g4 {[%clk 0:00:40.7]} 34... Kh7 {[%clk 0:00:38.1]} 35.
gxh5 {[%clk 0:00:40.7]} 35... g5 {[%clk 0:00:38.6]} 36. Rg4 {[%clk 0:00:33.8]}
36... Kh6 {[%clk 0:00:32.6]} 37. Rg3 {[%clk 0:00:32.8]} 37... Nf5 {[%clk
0:00:32.2]} 38. Rgd3 {[%clk 0:00:32.3]} 38... Nh4+ {[%clk 0:00:30.6]} 39. Kh2
{[%clk 0:00:31.5]} 39... Kxh5 {[%clk 0:00:30.7]} 40. Ng3+ {[%clk 0:00:31.5]}
40... Kg6 {[%clk 0:00:27]} 41. Ne4 {[%clk 0:00:31.8]} 41... Be7 {[%clk
0:00:26.8]} 42. b4 {[%clk 0:00:31.1]} 42... Bf5 {[%clk 0:00:27]} 43. Re3 {[%clk
0:00:28.8]} 43... Rh8 {[%clk 0:00:27.5]} 44. Nd6 {[%clk 0:00:26.9]} 44... Be6
{[%clk 0:00:25.5]} 45. Ne4 {[%clk 0:00:25]} 45... Bf5 {[%clk 0:00:25.5]} 46. Ng3
{[%clk 0:00:24.4]} 46... Be6 {[%clk 0:00:26]} 47. Nf1 {[%clk 0:00:24.6]} 47...
Kf7 {[%clk 0:00:26.1]} 48. Bb2 {[%clk 0:00:22.8]} 48... Ng6 {[%clk 0:00:26.2]}
49. Kg1 {[%clk 0:00:20.8]} 49... Nf4 {[%clk 0:00:26.7]} 50. Ng3 {[%clk
0:00:19.1]} 50... Nxh3+ {[%clk 0:00:26.8]} 51. Kg2 {[%clk 0:00:19]} 51... Nf4+
{[%clk 0:00:27.7]} 52. Kg1 {[%clk 0:00:19.2]} 52... Bd5 {[%clk 0:00:26.7]} 53.
f3 {[%clk 0:00:18.5]} 53... Rh3 {[%clk 0:00:25.9]} 54. Nf1 {[%clk 0:00:17.6]}
54... Bxf3 {[%clk 0:00:24.2]} 55. Rxf3 {[%clk 0:00:16.8]} 55... Rxf3 {[%clk
0:00:24.2]} 56. Rd7 {[%clk 0:00:16.3]} 56... Ke6 {[%clk 0:00:24.1]} 57. Ra7
{[%clk 0:00:15.6]} 57... Nd3 {[%clk 0:00:21.6]} 58. Ba3 {[%clk 0:00:14.7]} 58...
e4 {[%clk 0:00:19.4]} 59. Rxa6 {[%clk 0:00:13.6]} 59... Kd5 {[%clk 0:00:19.9]}
60. b5 {[%clk 0:00:13.9]} 60... Bxa3 {[%clk 0:00:20.1]} 61. bxc6 {[%clk
0:00:13.8]} 61... Bc5+ {[%clk 0:00:20.7]} 62. Kg2 {[%clk 0:00:13.8]} 62... Bd6
{[%clk 0:00:21]} 63. Nd2 {[%clk 0:00:12]} 63... Nf4+ {[%clk 0:00:20.7]} 64. Kg1
{[%clk 0:00:11.8]} 64... Rxc3 {[%clk 0:00:21.3]} 65. Nxe4 {[%clk 0:00:11]} 65...
Kxe4 {[%clk 0:00:20.8]} 66. c7 {[%clk 0:00:11.6]} 66... Bxc7 {[%clk 0:00:21.3]}
67. Rxf6 {[%clk 0:00:11.3]} 67... Be5 {[%clk 0:00:21.3]} 68. Rf8 {[%clk
0:00:10.2]} 68... Bd4+ {[%clk 0:00:22.2]} 69. Kf1 {[%clk 0:00:09.6]} 69... Kf3
{[%clk 0:00:23.1]} 70. Re8 {[%clk 0:00:08.7]} 70... Rc1+ {[%clk 0:00:21.9]} 71.
Re1 {[%clk 0:00:09.4]} 71... Rc2 {[%clk 0:00:22.8]} 72. Rd1 {[%clk 0:00:09.2]}
72... Rf2+ {[%clk 0:00:23.3]} 73. Ke1 {[%clk 0:00:09.6]} 73... Ng2# {[%clk
0:00:23.6]} 0-1

[Event "Early-Titled-Tuesday-Blitz-January-23-2024"]
[Site "Chess.com"]
[Date "2024.01.23"]
[Round "10"]
[White "Djager97"]
[Black "LangesNasenhaar"]
[Result "1-0"]
[WhiteElo "2566"]
[BlackElo "2416"]
[TimeControl "180+1"]
[EndTime "9:57:40 PST"]
[Termination "Djager97 won by checkmate"]

1. e4 {[%clk 0:03:00.9]} 1... g6 {[%clk 0:03:00.1]} 2. d4 {[%clk 0:02:56.3]}
2... Bg7 {[%clk 0:03:00.5]} 3. Nc3 {[%clk 0:02:56.6]} 3... c6 {[%clk 0:03:00.2]}
4. f4 {[%clk 0:02:55.9]} 4... d5 {[%clk 0:02:59.8]} 5. e5 {[%clk 0:02:56.5]}
5... Nh6 {[%clk 0:02:54.6]} 6. Nf3 {[%clk 0:02:56.2]} 6... f6 {[%clk 0:02:55]}
7. Be3 {[%clk 0:02:54.7]} 7... O-O {[%clk 0:02:54.6]} 8. Bd3 {[%clk 0:02:36.5]}
8... Bg4 {[%clk 0:02:47.6]} 9. O-O {[%clk 0:02:27.2]} 9... fxe5 {[%clk
0:02:47.7]} 10. dxe5 {[%clk 0:02:23.1]} 10... e6 {[%clk 0:02:39.6]} 11. h3
{[%clk 0:02:11.1]} 11... Bxf3 {[%clk 0:02:39.1]} 12. Rxf3 {[%clk 0:02:12]} 12...
Nf5 {[%clk 0:02:22.8]} 13. Bc5 {[%clk 0:02:10.7]} 13... Rf7 {[%clk 0:02:20.6]}
14. Ne2 {[%clk 0:02:08.9]} 14... Nd7 {[%clk 0:02:13.3]} 15. Bf2 {[%clk
0:02:06.6]} 15... c5 {[%clk 0:02:07.7]} 16. c4 {[%clk 0:02:07]} 16... d4 {[%clk
0:01:57.2]} 17. Be4 {[%clk 0:02:06.1]} 17... Qc7 {[%clk 0:01:44.9]} 18. Nc1
{[%clk 0:02:05.1]} 18... Raf8 {[%clk 0:01:42]} 19. Nd3 {[%clk 0:02:04.2]} 19...
b6 {[%clk 0:01:28.6]} 20. g4 {[%clk 0:01:52.5]} 20... Ne3 {[%clk 0:01:19.9]} 21.
Bxe3 {[%clk 0:01:52.1]} 21... dxe3 {[%clk 0:01:20.3]} 22. Rxe3 {[%clk
0:01:52.2]} 22... Bh6 {[%clk 0:01:10.3]} 23. g5 {[%clk 0:01:51]} 23... Bg7
{[%clk 0:01:10.7]} 24. Qg4 {[%clk 0:01:48.5]} 24... Re7 {[%clk 0:01:01.3]} 25.
h4 {[%clk 0:01:46.7]} 25... Nb8 {[%clk 0:00:52.2]} 26. h5 {[%clk 0:01:45.7]}
26... Kf7 {[%clk 0:00:51.8]} 27. Nf2 {[%clk 0:01:35.7]} 27... Nc6 {[%clk
0:00:50.5]} 28. Bxc6 {[%clk 0:01:30.3]} 28... Qxc6 {[%clk 0:00:50.6]} 29. Ne4
{[%clk 0:01:30]} 29... Rd7 {[%clk 0:00:38]} 30. Rae1 {[%clk 0:01:04.5]} 30...
Rd4 {[%clk 0:00:37.8]} 31. Nd6+ {[%clk 0:01:00.3]} 31... Ke7 {[%clk 0:00:37.6]}
32. Re4 {[%clk 0:00:44.8]} 32... Rd2 {[%clk 0:00:36.4]} 33. Rd1 {[%clk
0:00:36.3]} 33... Rxd1+ {[%clk 0:00:30.2]} 34. Qxd1 {[%clk 0:00:34.9]} 34... Rd8
{[%clk 0:00:30.6]} 35. h6 {[%clk 0:00:28.2]} 35... Qxe4 {[%clk 0:00:27]} 36.
hxg7 {[%clk 0:00:22.3]} 36... Qxf4 {[%clk 0:00:14.2]} 37. Nf5+ {[%clk
0:00:16.2]} 37... Qxf5 {[%clk 0:00:08.4]} 38. Qxd8+ {[%clk 0:00:16.7]} 38...
Kxd8 {[%clk 0:00:09.1]} 39. g8=Q+ {[%clk 0:00:17.2]} 39... Kc7 {[%clk
0:00:08.5]} 40. Qxh7+ {[%clk 0:00:15.5]} 40... Kc6 {[%clk 0:00:05.8]} 41. Qe7
{[%clk 0:00:14.1]} 41... Qxe5 {[%clk 0:00:04.3]} 42. Qe8+ {[%clk 0:00:14.6]}
42... Kb7 {[%clk 0:00:04.6]} 43. Qxg6 {[%clk 0:00:14.5]} 43... Qe3+ {[%clk
0:00:03.9]} 44. Kg2 {[%clk 0:00:14.5]} 44... Qe2+ {[%clk 0:00:04.1]} 45. Kg3
{[%clk 0:00:14.9]} 45... Qe3+ {[%clk 0:00:04.3]} 46. Kh4 {[%clk 0:00:15.1]}
46... Qd4+ {[%clk 0:00:04.4]} 47. Kh5 {[%clk 0:00:15.2]} 47... Qxc4 {[%clk
0:00:04.1]} 48. Qf7+ {[%clk 0:00:14.6]} 48... Ka6 {[%clk 0:00:04.4]} 49. g6
{[%clk 0:00:15.2]} 49... Qd5+ {[%clk 0:00:04.6]} 50. Kh6 {[%clk 0:00:15.4]}
50... Qd2+ {[%clk 0:00:04.8]} 51. Kh7 {[%clk 0:00:15.2]} 51... Qh2+ {[%clk
0:00:04.3]} 52. Kg8 {[%clk 0:00:15.7]} 52... e5 {[%clk 0:00:03.8]} 53. g7 {[%clk
0:00:15.4]} 53... Qg3 {[%clk 0:00:03.2]} 54. Kf8 {[%clk 0:00:15.2]} 54... e4
{[%clk 0:00:02.3]} 55. g8=Q {[%clk 0:00:15.1]} 55... Qb8+ {[%clk 0:00:03.2]} 56.
Kg7 {[%clk 0:00:13.8]} 56... Qg3+ {[%clk 0:00:03.1]} 57. Kf8 {[%clk 0:00:14.1]}
57... Qb8+ {[%clk 0:00:03.2]} 58. Qe8 {[%clk 0:00:14.7]} 58... Qf4+ {[%clk
0:00:02.9]} 59. Ke7 {[%clk 0:00:14.5]} 59... Qe5+ {[%clk 0:00:02.6]} 60. Kd7
{[%clk 0:00:14.6]} 60... Qd4+ {[%clk 0:00:02.2]} 61. Kc7 {[%clk 0:00:13.5]}
61... e3 {[%clk 0:00:03.1]} 62. Qc8+ {[%clk 0:00:10.8]} 62... Ka5 {[%clk
0:00:03.1]} 63. Qb3 {[%clk 0:00:07.9]} 63... Qe5+ {[%clk 0:00:03.4]} 64. Kb7
{[%clk 0:00:08]} 64... Qd5+ {[%clk 0:00:02.7]} 65. Qxd5 {[%clk 0:00:06.8]} 65...
e2 {[%clk 0:00:02.1]} 66. Qd2+ {[%clk 0:00:07.1]} 66... Kb5 {[%clk 0:00:02.2]}
67. Qxe2+ {[%clk 0:00:07.3]} 67... Kb4 {[%clk 0:00:02]} 68. Qc6 {[%clk
0:00:07.4]} 68... Ka5 {[%clk 0:00:02.3]} 69. Qcb5# {[%clk 0:00:07.3]} 1-0

[Event "Early-Titled-Tuesday-Blitz-January-23-2024"]
[Site "Chess.com"]
[Date "2024.01.23"]
[Round "10"]
[White "koncheto"]
[Black "Piotrek1979"]
[Result "1-0"]
[WhiteElo "2557"]
[BlackElo "2404"]
[TimeControl "180+1"]
[EndTime "9:57:40 PST"]
[Termination "koncheto won by checkmate"]

1. e4 {[%clk 0:03:00.9]} 1... c5 {[%clk 0:02:59]} 2. Nf3 {[%clk 0:03:01]} 2...
Nc6 {[%clk 0:02:58.7]} 3. d4 {[%clk 0:03:01.6]} 3... cxd4 {[%clk 0:02:58.1]} 4.
Nxd4 {[%clk 0:03:02.5]} 4... g6 {[%clk 0:02:58.5]} 5. c4 {[%clk 0:03:02.8]} 5...
Nf6 {[%clk 0:02:57.2]} 6. Nc3 {[%clk 0:03:03]} 6... d6 {[%clk 0:02:57.4]} 7. Be2
{[%clk 0:03:01.6]} 7... Nxd4 {[%clk 0:02:57]} 8. Qxd4 {[%clk 0:03:01.8]} 8...
Bg7 {[%clk 0:02:57.7]} 9. Be3 {[%clk 0:03:02.7]} 9... O-O {[%clk 0:02:57.3]} 10.
Qd2 {[%clk 0:03:03]} 10... Be6 {[%clk 0:02:56.2]} 11. O-O {[%clk 0:03:02.9]}
11... a5 {[%clk 0:02:56.8]} 12. Rac1 {[%clk 0:03:02.3]} 12... a4 {[%clk
0:02:56.7]} 13. Rc2 {[%clk 0:03:02.4]} 13... Qa5 {[%clk 0:02:55.6]} 14. Rb1
{[%clk 0:03:02.4]} 14... Rfc8 {[%clk 0:02:53.7]} 15. b4 {[%clk 0:03:02.6]} 15...
axb3 {[%clk 0:02:53.1]} 16. axb3 {[%clk 0:03:03.5]} 16... Qb4 {[%clk 0:02:48]}
17. f3 {[%clk 0:02:55.5]} 17... Nd7 {[%clk 0:02:40.7]} 18. Nd5 {[%clk 0:02:48]}
18... Qxd2 {[%clk 0:02:39.7]} 19. Rxd2 {[%clk 0:02:46.7]} 19... Bxd5 {[%clk
0:02:25.5]} 20. exd5 {[%clk 0:02:47.6]} 20... Ra3 {[%clk 0:02:17.6]} 21. Rc2
{[%clk 0:02:37.5]} 21... Nc5 {[%clk 0:02:14.3]} 22. Bxc5 {[%clk 0:02:37.8]}
22... Rxc5 {[%clk 0:02:03.5]} 23. Bd3 {[%clk 0:02:36.7]} 23... Rc8 {[%clk
0:01:41.8]} 24. Kf2 {[%clk 0:02:35]} 24... b5 {[%clk 0:01:40]} 25. Ke2 {[%clk
0:02:26.8]} 25... b4 {[%clk 0:01:38.6]} 26. Rd2 {[%clk 0:02:22]} 26... Bc3
{[%clk 0:01:33.1]} 27. Rc2 {[%clk 0:02:22.4]} 27... Bd4 {[%clk 0:01:33]} 28. Rd2
{[%clk 0:02:22.1]} 28... Bc5 {[%clk 0:01:30.3]} 29. Rc2 {[%clk 0:02:22]} 29...
h5 {[%clk 0:01:28]} 30. Rd2 {[%clk 0:02:14.9]} 30... Kg7 {[%clk 0:01:26.1]} 31.
Rc2 {[%clk 0:02:09.3]} 31... Rc7 {[%clk 0:01:26.2]} 32. f4 {[%clk 0:02:05.4]}
32... Rca7 {[%clk 0:01:27.1]} 33. Kf3 {[%clk 0:02:03.4]} 33... f5 {[%clk
0:01:27]} 34. h3 {[%clk 0:02:00.6]} 34... Ra2 {[%clk 0:01:26.8]} 35. Rbb2 {[%clk
0:01:59.1]} 35... Rxb2 {[%clk 0:01:24.1]} 36. Rxb2 {[%clk 0:02:00]} 36... Ra1
{[%clk 0:01:23.9]} 37. g4 {[%clk 0:01:57.6]} 37... hxg4+ {[%clk 0:00:50.4]} 38.
hxg4 {[%clk 0:01:57.8]} 38... fxg4+ {[%clk 0:00:51.3]} 39. Kxg4 {[%clk
0:01:57.6]} 39... Kf6 {[%clk 0:00:52.2]} 40. Re2 {[%clk 0:01:56.1]} 40... Rg1+
{[%clk 0:00:49.6]} 41. Kh3 {[%clk 0:01:50.8]} 41... g5 {[%clk 0:00:45.7]} 42.
Re6+ {[%clk 0:01:50.8]} 42... Kf7 {[%clk 0:00:45.2]} 43. fxg5 {[%clk 0:01:25.2]}
43... Rxg5 {[%clk 0:00:43.9]} 44. Re2 {[%clk 0:01:14.2]} 44... Rg1 {[%clk
0:00:43.3]} 45. Bc2 {[%clk 0:01:07.8]} 45... Bd4 {[%clk 0:00:36.8]} 46. Rg2
{[%clk 0:01:03.8]} 46... Re1 {[%clk 0:00:32.3]} 47. Kg4 {[%clk 0:01:02.8]} 47...
Be5 {[%clk 0:00:29.8]} 48. Kf3 {[%clk 0:00:59.6]} 48... Ke8 {[%clk 0:00:19.9]}
49. Bf5 {[%clk 0:00:54.9]} 49... Kd8 {[%clk 0:00:19.1]} 50. Re2 {[%clk 0:00:45]}
50... Rf1+ {[%clk 0:00:18.7]} 51. Rf2 {[%clk 0:00:45.4]} 51... Rc1 {[%clk
0:00:19.2]} 52. Bc2 {[%clk 0:00:39]} 52... Kc7 {[%clk 0:00:18.3]} 53. Ke4 {[%clk
0:00:38.9]} 53... Bf6 {[%clk 0:00:18]} 54. Kd3 {[%clk 0:00:37.8]} 54... Rg1
{[%clk 0:00:18.5]} 55. Re2 {[%clk 0:00:37.9]} 55... Kb6 {[%clk 0:00:18.8]} 56.
Re3 {[%clk 0:00:28.7]} 56... Kc5 {[%clk 0:00:19.3]} 57. Rh3 {[%clk 0:00:26.1]}
57... Bc3 {[%clk 0:00:18.6]} 58. Rf3 {[%clk 0:00:25.9]} 58... Rg2 {[%clk
0:00:18.4]} 59. Bb1 {[%clk 0:00:23.5]} 59... Rd2+ {[%clk 0:00:19]} 60. Ke3
{[%clk 0:00:23.5]} 60... Rb2 {[%clk 0:00:19.9]} 61. Rf1 {[%clk 0:00:15.9]} 61...
Rxb3 {[%clk 0:00:20.1]} 62. Bd3 {[%clk 0:00:16.8]} 62... Ra3 {[%clk 0:00:19.7]}
63. Rf7 {[%clk 0:00:16]} 63... Bf6 {[%clk 0:00:19.4]} 64. Rf8 {[%clk 0:00:16.6]}
64... b3 {[%clk 0:00:18.7]} 65. Rb8 {[%clk 0:00:17.2]} 65... b2 {[%clk
0:00:17.8]} 66. Kd2 {[%clk 0:00:16.6]} 66... Ra1 {[%clk 0:00:17.3]} 67. Kc2
{[%clk 0:00:14.4]} 67... Rc1+ {[%clk 0:00:16.7]} 68. Kd2 {[%clk 0:00:15]} 68...
Rg1 {[%clk 0:00:16.6]} 69. Ke3 {[%clk 0:00:12.4]} 69... Rg3+ {[%clk 0:00:15.8]}
70. Kd2 {[%clk 0:00:12.4]} 70... Rh3 {[%clk 0:00:16.4]} 71. Ke2 {[%clk 0:00:12]}
71... Rh2+ {[%clk 0:00:16.4]} 72. Ke3 {[%clk 0:00:12.5]} 72... Rh1 {[%clk
0:00:13.5]} 73. Rb5# {[%clk 0:00:11.8]} 1-0

[Event "Early-Titled-Tuesday-Blitz-January-23-2024"]
[Site "Chess.com"]
[Date "2024.01.23"]
[Round "10"]
[White "Iunusovnuriddin"]
[Black "crazy_m_attack"]
[Result "1-0"]
[WhiteElo "2311"]
[BlackElo "2446"]
[TimeControl "180+1"]
[EndTime "9:57:40 PST"]
[Termination "Iunusovnuriddin won on time"]

1. e4 {[%clk 0:02:41.6]} 1... e5 {[%clk 0:02:59.6]} 2. Nf3 {[%clk 0:02:41.3]}
2... Nc6 {[%clk 0:02:59.7]} 3. Nc3 {[%clk 0:02:40]} 3... Nf6 {[%clk 0:02:59.5]}
4. g3 {[%clk 0:02:39.8]} 4... d5 {[%clk 0:02:57.8]} 5. exd5 {[%clk 0:02:40.7]}
5... Nxd5 {[%clk 0:02:58.2]} 6. Bg2 {[%clk 0:02:40.2]} 6... Nxc3 {[%clk
0:02:57.9]} 7. bxc3 {[%clk 0:02:40]} 7... Bc5 {[%clk 0:02:56.2]} 8. O-O {[%clk
0:02:39.4]} 8... O-O {[%clk 0:02:54.3]} 9. Re1 {[%clk 0:02:37.2]} 9... Bg4
{[%clk 0:02:49.3]} 10. h3 {[%clk 0:02:36.3]} 10... Bh5 {[%clk 0:02:49]} 11. g4
{[%clk 0:02:36.1]} 11... Bg6 {[%clk 0:02:49.1]} 12. Nxe5 {[%clk 0:02:36.5]}
12... Nxe5 {[%clk 0:02:45.7]} 13. Rxe5 {[%clk 0:02:36]} 13... Bd6 {[%clk
0:02:43.8]} 14. Re1 {[%clk 0:02:35.3]} 14... f5 {[%clk 0:02:41.9]} 15. d3 {[%clk
0:02:20.1]} 15... fxg4 {[%clk 0:02:40.4]} 16. Qxg4 {[%clk 0:02:14.7]} 16... Qf6
{[%clk 0:02:20.3]} 17. Be3 {[%clk 0:01:50.8]} 17... Qe5 {[%clk 0:02:08.4]} 18.
Bd4 {[%clk 0:01:29.4]} 18... Qh2+ {[%clk 0:02:07.2]} 19. Kf1 {[%clk 0:01:28.9]}
19... c5 {[%clk 0:01:31.9]} 20. Qe6+ {[%clk 0:01:09.5]} 20... Bf7 {[%clk
0:01:26.2]} 21. Be5 {[%clk 0:00:53.1]} 21... Bxe6 {[%clk 0:01:01.3]} 22. Bxh2
{[%clk 0:00:50.9]} 22... Bxh2 {[%clk 0:01:02.2]} 23. Rxe6 {[%clk 0:00:50.4]}
23... Bg3 {[%clk 0:01:00.2]} 24. Re2 {[%clk 0:00:47.1]} 24... Rab8 {[%clk
0:00:57]} 25. Kg1 {[%clk 0:00:45.3]} 25... Bf4 {[%clk 0:00:53.9]} 26. Bd5+
{[%clk 0:00:44.7]} 26... Kh8 {[%clk 0:00:53.5]} 27. Re7 {[%clk 0:00:40]} 27...
b6 {[%clk 0:00:49.8]} 28. c4 {[%clk 0:00:36.5]} 28... a6 {[%clk 0:00:36.6]} 29.
Rae1 {[%clk 0:00:35.6]} 29... Bg5 {[%clk 0:00:34]} 30. a4 {[%clk 0:00:34.3]}
30... Bxe7 {[%clk 0:00:33.3]} 31. Rxe7 {[%clk 0:00:35.2]} 31... h6 {[%clk
0:00:28.6]} 32. Ra7 {[%clk 0:00:30.8]} 32... a5 {[%clk 0:00:27.2]} 33. Bc6
{[%clk 0:00:30.6]} 33... Rf6 {[%clk 0:00:25.8]} 34. Bd5 {[%clk 0:00:28.5]} 34...
Re8 {[%clk 0:00:24.5]} 35. Kg2 {[%clk 0:00:18]} 35... h5 {[%clk 0:00:19.4]} 36.
Bf3 {[%clk 0:00:17]} 36... Rg6+ {[%clk 0:00:13.4]} 37. Kf1 {[%clk 0:00:12.7]}
37... Rg5 {[%clk 0:00:12.7]} 38. h4 {[%clk 0:00:12.8]} 38... Rf5 {[%clk
0:00:11.6]} 39. Kg2 {[%clk 0:00:13.4]} 39... Ref8 {[%clk 0:00:10.7]} 40. Be4
{[%clk 0:00:12.3]} 40... Rxf2+ {[%clk 0:00:10.9]} 41. Kg3 {[%clk 0:00:12.1]}
41... Rxc2 {[%clk 0:00:11.2]} 42. Rb7 {[%clk 0:00:11.6]} 42... Rb2 {[%clk
0:00:11.4]} 43. Rd7 {[%clk 0:00:11.8]} 43... Ra2 {[%clk 0:00:08.6]} 44. Rd5
{[%clk 0:00:11.7]} 44... g6 {[%clk 0:00:05.1]} 45. Bxg6 {[%clk 0:00:10.8]} 45...
Rxa4 {[%clk 0:00:05]} 46. Rxh5+ {[%clk 0:00:10.6]} 46... Kg7 {[%clk 0:00:04.8]}
47. Be4 {[%clk 0:00:10.6]} 47... Rb4 {[%clk 0:00:03.5]} 48. Rh7+ {[%clk
0:00:11.1]} 48... Kf6 {[%clk 0:00:03.9]} 49. h5 {[%clk 0:00:11.5]} 49... a4
{[%clk 0:00:03.9]} 50. Ra7 {[%clk 0:00:11.8]} 50... Rg8+ {[%clk 0:00:03.1]} 51.
Kf4 {[%clk 0:00:11.9]} 51... Rb1 {[%clk 0:00:01.9]} 52. h6 {[%clk 0:00:10.9]}
52... Rf1+ {[%clk 0:00:01.8]} 53. Ke3 {[%clk 0:00:11.1]} 53... Rh1 {[%clk
0:00:01.4]} 54. h7 {[%clk 0:00:10.9]} 54... Rg3+ {[%clk 0:00:01.2]} 55. Kf2
{[%clk 0:00:10.6]} 55... Rgh3 {[%clk 0:00:01.5]} 56. Rxa4 {[%clk 0:00:10.4]}
56... R1h2+ {[%clk 0:00:01.9]} 57. Kg1 {[%clk 0:00:09.6]} 57... Rd2 {[%clk
0:00:01.9]} 58. Ra6 {[%clk 0:00:09.5]} 58... Ke5 {[%clk 0:00:02]} 59. Rxb6
{[%clk 0:00:08.6]} 1-0